Cogmind - Beta 13 @@@ ROGUE MODE // 2024.08.03 @ 18:03:12 Player: Khanable Result: Destroyed by G-47 Trooper with Particle Gun Performance ------------- Evolutions (2) 1000 Regions Visited (4) 800 Robots Destroyed (40) 200 Value Destroyed (1022) 1022 Prototype IDs (0) 0 Alien Tech Used (0) 0 Bonus (0) 0 TOTAL SCORE: 3022 Bonus ------- None Cogmind --------- Core Integrity 0/550 Matter 290/300 Energy 15/100 System Corruption 0% Temperature Warm (130) Movement Core (500) Ox9 Location -8/Materials Parts ------- > --- POWER (1) -------- (None) > --- PROPULSION (4) --- (None) > --- UTILITY (3) ------ Hardened Medium Armor Plating Hardened Medium Armor Plating Hardened Medium Armor Plating > --- WEAPON (3) ------- Ion Cannon > --- INVENTORY (5) ---- Large Matter Pod (98) ECM Suite Hacking Suite Peak State ------------ > --- POWER ------------ Ion Engine > --- PROPULSION ------- Aluminum Leg Aluminum Leg > --- UTILITY ---------- Improved Heat Sink Small Storage Unit ECM Suite > --- WEAPON ----------- Particle Gun Assault Cannon Assault Cannon > --- INVENTORY -------- Heat Sink Improved Heat Sink Improved Heat Sink Large Matter Pod ECM Suite Hacking Suite Particle Gun [Rating: 17] Favorites ----------- Power Ion Engine Engine Ion Engine Propulsion Aluminum Leg Treads Light Treads Leg Aluminum Leg Utility Small Storage Unit Device Improved Heat Sink Storage Small Storage Unit Protection Hardened Medium Armor Plating Weapon Particle Gun Energy Gun Particle Gun Energy Cannon Ion Cannon Ballistic Gun Assault Rifle Ballistic Cannon Assault Cannon Build | -11 -10 -9 -9 -8 ------- Run | Yrd Mat Mat Min Mat Slots Evolved 4 | . . 2 . 2 Power . | . . . . . Propulsion 2 | . . 2 . . Utility 1 | . . . . 1 Weapon 1 | . . . . 1 Parts Attached 51 | 9 15 8 . 19 Power 7 | 1 4 1 . 1 Engine 7 | 1 4 1 . 1 Core . | . . . . . Reactor . | . . . . . Propulsion 16 | 5 4 5 . 2 Treads 5 | 3 2 . . . Leg 11 | 2 2 5 . 2 Wheel . | . . . . . Hover . | . . . . . Flight . | . . . . . Utility 14 | 1 3 1 . 9 Device 6 | . 1 1 . 4 Storage 4 | 1 2 . . 1 Processor . | . . . . . Hackware . | . . . . . Protection 4 | . . . . 4 Artifact . | . . . . . Weapon 14 | 2 4 1 . 7 Energy Gun 7 | . 3 1 . 3 Energy Cannon 2 | . . . . 2 Ballistic Gun 3 | 2 1 . . . Ballistic Cannon 2 | . . . . 2 Launcher . | . . . . . Special Weapon . | . . . . . Impact Weapon . | . . . . . Slashing Weapon . | . . . . . Piercing Weapon . | . . . . . Special Melee Weapon . | . . . . . Unidentified Prototypes . | . . . . . Parts Lost 22 | . 1 6 . 15 Power 4 | . 1 1 . 2 Propulsion 7 | . . 3 . 4 Utility 5 | . . 1 . 4 Weapon 6 | . . 1 . 5 Highest Loss Streak 6 | . 1 4 . 6 To Critical Strikes . | . . . . . Average Slot Usage (%) 81 | . 89 95 66 62 Engine 9 | . 12 11 11 5 Treads 5 | . 20 . . . Leg 22 | . 7 40 22 12 Device 7 | . . 9 . 13 Storage 12 | . 20 11 11 8 Energy Gun 15 | . 13 22 22 6 Ballistic Gun 3 | . 13 . . . Ballistic Cannon 3 | . . . . 10 Naked Turns . | . . . . . Heaviest Build 30 | 13 19 17 16 30 Greatest Support 43 | 40 40 43 20 30 Greatest Overweight (x) 9 | 1 3 1 . 9 Average Overweight (x) . | . . . . 1 Largest Inventory Capacity 8 | 8 8 8 8 8 Average Capacity 7 | 6 8 8 8 7 Most Carried 8 | 3 8 8 7 8 Average Carried 6 | 1 6 7 6 6 Final Capacity 8 | 8 8 8 8 5 Final Carried 8 | 3 8 6 6 3 Class Distribution -------------------- 53% | Mutant 33% | Scavenger-Mutant 13% | Gunner Dominant Class ---------------- Mutant | -10/Materials Scavenger-Mutant | -9/Materials Mutant | -9/Mines Gunner | -8/Materials Resources | -11 -10 -9 -9 -8 ----------- Run | Yrd Mat Mat Min Mat Matter Collected 961 | 250 299 164 . 248 Remotely . | . . . . . Salvage Created 1219 | . 353 469 . 397 Parts 69 | . 17 26 . 26 Haulers Intercepted 1 | . . 1 . . Recyclers Shooed 5 | . 2 3 . . Parts Field Recycled . | . . . . . Retrieved Matter . | . . . . . Parts Self-Destructed . | . . . . . Prevented . | . . . . . Kills | -11 -10 -9 -9 -8 ------- Run | Yrd Mat Mat Min Mat Combat Hostiles Destroyed 32 | . 7 15 . 10 Guns 21 | . 6 14 . 1 Cannons 9 | . . . . 9 AOE 1 | . 1 . . . Classes Destroyed 8 | . 3 4 . 1 Worker 2 | . 1 1 . . Builder 2 | . . 2 . . Hauler 1 | . . 1 . . Recycler 1 | . . . . 1 Watcher 2 | . 2 . . . Swarmer 13 | . . 9 . 4 Grunt 13 | . 7 3 . 3 Sentry 6 | . . 3 . 3 Best Kill Streak 8 | . 3 8 . 4 Combat Bots Only 5 | . 2 5 . 4 Max Kills in Single Turn 1 | . 1 1 . 1 Gunslinging . | . . . . . Exploded 1 | . 1 . . . Melee . | . . . . . Uniques/NPCs Destroyed . | . . . . . Combat | -11 -10 -9 -9 -8 -------- Run | Yrd Mat Mat Min Mat Hostile Shots Fired 397 | . 54 87 . 256 Missed 115 | . 11 24 . 80 Damage Taken 3602 | . 576 717 . 2309 Core 856 | . 134 158 . 564 Absorbed by Shields . | . . . . . Core Remaining (%) 68 | 100 46 . 60 . Volleys Fired 131 | . 34 61 . 36 Largest 3 | . 2 2 . 3 Hottest 153 | . 130 130 . 153 Shots Fired 247 | . 66 122 . 59 Gun 200 | . 66 122 . 12 Cannon 47 | . . . . 47 Launcher . | . . . . . Special . | . . . . . Kinetic 74 | . 47 . . 27 Thermal 173 | . 19 122 . 32 Explosive . | . . . . . Electromagnetic . | . . . . . Robot Hit Streak 13 | . 13 11 . 8 Robot Miss Streak 5 | . 3 5 . 5 Penetration Max . | . . . . . Secondary Targets 1 | . 1 . . . Max Gunslinging Chain 1 | . 1 . . . Shots Hit Robots 159 | . 43 84 . 32 Core Hits 60 | . 19 25 . 16 Critical Kills . | . . . . . Critical Parts Destroyed . | . . . . . Critical Strikes 7 | . . 7 . . Burn 7 | . . 7 . . Melee Attacks . | . . . . . Impact . | . . . . . Slashing . | . . . . . Piercing . | . . . . . Sneak Attacks . | . . . . . Combat Hostiles . | . . . . . Follow-up Attacks . | . . . . . Damage Inflicted 2895 | . 768 1360 . 767 Guns 1985 | . 570 1357 . 58 Cannons 709 | . . . . 709 Explosions 198 | . 198 . . . Melee . | . . . . . Ramming 3 | . . 3 . . Kinetic 685 | . 369 . . 316 Thermal 2039 | . 231 1357 . 451 Explosive . | . . . . . Electromagnetic 168 | . 168 . . . Impact . | . . . . . Slashing . | . . . . . Piercing . | . . . . . Highest Corruption 5 | . 5 . . . Average Corruption 3 | . 3 . . . Corruption Purged . | . . . . . Corruption Blocked . | . . . . . Overload Shots . | . . . . . Overflow Damage 9 | . 9 . . . Projectiles . | . . . . . Explosions 9 | . 9 . . . Melee . | . . . . . Knockbacks 1 | . . . . 1 Impact . | . . . . . Kinetic 1 | . . . . 1 Secondary . | . . . . . Self-Inflicted Damage . | . . . . . Shots . | . . . . . Rammed . | . . . . . Targets Rammed 2 | . . 2 . . Kicked 2 | . . 2 . . Crushed . | . . . . . Highest Temperature 462 | . 172 462 . 148 Average Temperature 68 | . 45 84 . 52 Received Heat Transfer 1488 | . 345 189 . 954 Effects 5 | . . 5 . . Energy Bleed 2 | . . 2 . . Interference 2 | . . 2 . . Short Circuit 1 | . . 1 . . Siege Activations . | . . . . . Robots Corrupted . | . . . . . Combat Hostiles . | . . . . . Parts Fried 1 | . 1 . . . Impact Corruptions . | . . . . . Robots Melted 1 | . . 1 . . Combat Hostiles 1 | . . 1 . . Parts Melted 5 | . 1 3 . 1 Heat Transferred 5082 | . 531 3774 . 777 Parts Sabotaged . | . . . . . Parts Stolen . | . . . . . Parts Stripped . | . . . . . Power Chain Reactions 1 | . 1 . . . Alert | -11 -10 -9 -9 -8 ------- Run | Yrd Mat Mat Min Mat Peak Influence 382 | . 226 382 148 224 Initial 148 | . . 23 148 57 Average 116 | . 102 142 148 106 Maximum Alert Level 1 | . 1 1 . 1 Low Security (%) 79 | 100 72 67 100 90 Level 1 20 | . 27 32 . 9 Level 2 . | . . . . . Level 3 . | . . . . . Level 4 . | . . . . . Level 5 . | . . . . . High Security . | . . . . . Max Security . | . . . . . Squads Dispatched 4 | . 2 . . 2 Investigation . | . . . . . Extermination . | . . . . . Reinforcement 4 | . 2 . . 2 Assault . | . . . . . Garrison . | . . . . . Intercept . | . . . . . Searches Triggered . | . . . . . Construction Impeded . | . . . . . Haulers Reinforced . | . . . . . Active Scanning Responses . | . . . . . Cargo Convoy Interrupts . | . . . . . Stealth | -11 -10 -9 -9 -8 --------- Run | Yrd Mat Mat Min Mat Distress Signals 4 | . . 1 . 3 Communications Jammed . | . . . . . Distress Signals . | . . . . . Times Spotted 54 | . 10 23 . 21 Peak Tracking Total 8 | . 3 4 . 8 Tactical Retreats 8 | . . 3 . 5 Traps | -11 -10 -9 -9 -8 ------- Run | Yrd Mat Mat Min Mat Traps Triggered 6 | . 6 . . . Indirectly . | . . . . . Trap Hack Attempts . | . . . . . Triggered . | . . . . . Disarmed . | . . . . . Reprogrammed . | . . . . . Reused . | . . . . . Traps Extracted . | . . . . . Installed . | . . . . . Triggered . | . . . . . Machines | -11 -10 -9 -9 -8 ---------- Run | Yrd Mat Mat Min Mat Machines Disabled 5 | . 4 . . 1 Max in Single Turn 2 | . 2 . . 1 Machines Repaired . | . . . . . Machines Dismantled . | . . . . . Machines Sabotaged . | . . . . . Overloaded Fab Kills . | . . . . . Hacking | -11 -10 -9 -9 -8 --------- Run | Yrd Mat Mat Min Mat Machines Accessed 6 | . 3 2 . 1 Terminals 5 | . 2 2 . 1 Fabricators . | . . . . . Repair Stations . | . . . . . Recycling Units 1 | . 1 . . . Scanalyzers . | . . . . . Garrison Access . | . . . . . Total Hacks 13 | . 7 4 . 2 Successful 6 | . 4 . . 2 Failed 7 | . 3 4 . . Catastrophic . | . . . . . Database Lockouts . | . . . . . Manual 1 | . 1 . . . Terminals 11 | . 5 4 . 2 Fabricators . | . . . . . Repair Stations . | . . . . . Recycling Units 2 | . 2 . . . Scanalyzers . | . . . . . Garrison Access . | . . . . . Terminal Hacks 5 | . 3 . . 2 Record 2 | . 2 . . . Hauler Manifests 1 | . . . . 1 Registered Components 1 | . 1 . . . Zone Layout 1 | . . . . 1 Fabricator Hacks . | . . . . . Repair Station Hacks . | . . . . . Recycling Unit Hacks 1 | . 1 . . . Report Inventory 1 | . 1 . . . Scanalyzer . | . . . . . Garrison Access Hacks . | . . . . . Unauthorized Hacks . | . . . . . Terminals . | . . . . . Fabricators . | . . . . . Repair Stations . | . . . . . Recycling Units . | . . . . . Scanalyzers . | . . . . . Garrison Access . | . . . . . Data Cores Recovered . | . . . . . Used . | . . . . . Hacking Detections 5 | . 2 2 . 1 Full Trace Events . | . . . . . Feedback Events . | . . . . . Feedback Blocked . | . . . . . Robot Schematics Acquired . | . . . . . Robots Built . | . . . . . Authchips . | . . . . . Time . | . . . . . Total Robot Build Rating . | . . . . . Part Schematics Acquired . | . . . . . Parts Built . | . . . . . Authchips . | . . . . . Time . | . . . . . Total Part Build Rating . | . . . . . Parts Repaired . | . . . . . Time . | . . . . . Parts Recycled . | . . . . . Recycled Matter . | . . . . . Retrieved Matter . | . . . . . Retrieved Components . | . . . . . Parts Scanalyzed . | . . . . . Part Schematics Acquired . | . . . . . Parts Damaged . | . . . . . Bothacking | -11 -10 -9 -9 -8 ------------ Run | Yrd Mat Mat Min Mat Used RIF Installer . | . . . . . Robots Hacked . | . . . . . Non-combat . | . . . . . Combat . | . . . . . Robot Hacks Applied . | . . . . . Relay Couplers Released . | . . . . . Fabnet Peak Effective % . | . . . . . Robots Rewired . | . . . . . Allies Hacked . | . . . . . Hacks Repelled . | . . . . . Allies | -11 -10 -9 -9 -8 -------- Run | Yrd Mat Mat Min Mat Total Allies . | . . . . . Largest Group . | . . . . . Highest-Rated Group . | . . . . . Highest-Rated Ally . | . . . . . Total Orders . | . . . . . Ally Attacks . | . . . . . Total Damage . | . . . . . Kills . | . . . . . Allies Corrupted . | . . . . . Allies Melted . | . . . . . Intel | -11 -10 -9 -9 -8 ------- Run | Yrd Mat Mat Min Mat Robot Analysis Total . | . . . . . Derelict Logs Recovered . | . . . . . Drone Launches . | . . . . . Drone Recoveries . | . . . . . Exploration | -11 -10 -9 -9 -8 ------------- Run | Yrd Mat Mat Min Mat Turns Passed 1959 | 92 481 691 145 550 Spaces Moved 1047 | 70 242 385 121 229 Core 55 | 22 1 . . 32 Treads 154 | 4 150 . . . Legs 838 | 44 91 385 121 197 Wheels . | . . . . . Hover . | . . . . . Flight . | . . . . . Fastest Speed 50 | 50 120 120 120 100 Average Speed 137 | 103 145 120 120 177 Slowest Speed 500 | 160 200 190 120 500 Overloaded Moves . | . . . . . Propulsion Burnouts . | . . . . . Robots Hopped . | . . . . . Cave-ins Triggered . | . . . . . Exploration Rate (%) 24 | 4 38 24 29 28 Regions Visited 4 Branch Regions 1 Pre-discovered Areas . | . . . . . Known Exits Taken . | . . . . . Unknown Exits Taken 4 | 1 1 1 1 . Scrap Searched 1 | . . . 1 . Spaces Dug . | . . . . . Terrain Destroyed 7 | . . . . 7 Melee . | . . . . . Projectile 7 | . . . . 7 AOE . | . . . . . Terrain Rammed . | . . . . . Walls Destroyed . | . . . . . Machines Disabled . | . . . . . Actions | -11 -10 -9 -9 -8 --------- Run | Yrd Mat Mat Min Mat Total 1329 | 87 309 488 122 323 Wait 52 | . . 30 . 22 Move 1043 | 69 241 384 120 229 Hop . | . . . . . Pick Up 28 | 6 11 2 . 9 Fast Attach 22 | 6 7 2 . 7 Attach 20 | . 5 4 . 11 Detach 5 | . 1 . 1 3 Swap 9 | 3 3 2 . 1 Drop 17 | 3 7 1 1 5 Fire 131 | . 34 61 . 36 Melee . | . . . . . Ram . | . . . . . Kick 2 | . . 2 . . Crush . | . . . . . Escape Stasis . | . . . . . Rewire . | . . . . . Trap . | . . . . . Miscellaneous . | . . . . . Route ------- -11/Scrapyard -10/Materials -9/Materials -9/Mines -8/Materials History --------- Turn | Location | Event 17 | -11/Scrapyard | Discovered new exit (range 14) 93 | -11/Scrapyard | Entered Materials 317 | -10/Materials | Build established: Mutant 358 | -10/Materials | Core integrity fell below 50% 568 | -10/Materials | Discovered new exit (range 4) 574 | -10/Materials | Entered another Materials area 574 | -9/Materials | Evolved 2 slots: Propulsion x2 862 | -9/Materials | Build established: Scavenger-Mutant 1104 | -9/Materials | Discovered new exit (range 7) 1214 | -9/Materials | Lost 4 parts (1p2n1u) 1265 | -9/Materials | Entered Mines 1366 | -9/Mines | Discovered new exit (range 7) 1410 | -9/Mines | Entered Materials 1410 | -8/Materials | Evolved 2 slots: Utility x1, Weapon x1 1785 | -8/Materials | Lost 3 parts (1p1n1w) 1826 | -8/Materials | Lost 6 parts (1p2n1u2w) 1856 | -8/Materials | Core integrity fell below 50% 1889 | -8/Materials | Lost 3 parts (1n1u1w) 1940 | -8/Materials | Core integrity fell below 20% 1960 | -8/Materials | Lost 3 parts (2u1w) 1960 | -8/Materials | Destroyed by G-47 Trooper with Particle Gun Last Messages --------------- ALERT: Hostiles spotted, dispatching reinforcements to Terminal M008. K-01 Serf collects debris. Acquired Ion Cannon. S-10 Pest destroyed. Y-45 Defender destroyed. U-05 Engineer builds a Wall. Critical hit (Burn: +37). U-05 Engineer builds a Wall. G-47 Trooper destroyed. Imp. Heat Sink destroyed. U-05 Engineer destroyed. Y-45 Defender destroyed. R-06 Scavenger collects Particle Gun. G-47 Trooper destroyed. R-06 Scavenger collects Aluminum Leg. Ion Cannon destroyed. Acquired Ion Cannon. Hrd. Medium Armor Plating destroyed. Acquired Hrd. Medium Armor Plating. Map ----- +----------------------------------------------------+ | ???????????? ######### """ ## % ## """ | | ????????????##+## ## "T" ## ## "T" | | ????????????# # """## ## ## | | ???????????? T + """## ## ## """ | | ????????????# # """## ## ## """ | | ????????????## ## ## ## # """ | | ?????????????# #??????????????## ## ?? | | ?????????????# #####??#####+### ##/### | | ?????????????# ## # / | | ?????????????/ + | | ???# ????????# ? % #" # | | ???? [???????# #??########### ## #?? | | ????? ??????# #????????????######## #?? | | ?????? ?????# #???????????????????# #?? | | ??????##+##### ###############?????# #?? | | ??????# #?????# #?? | | ??????# #?????# #?? | | ??????# !! #?????# #?? | | # / ###+############## #######/##? | | ??"T??????# % != #????# # #? | | ??????????# !%%%[ #????# # %%"""#? | | ??????????#= [ #????# # """""#? | | ??????????# g g #????# # """""#? | | ??????????# ! g] #????# / ! """""#? | | ??????????# ] #????# # """""#? | | ??????????# ]@ #????##### """""?? | | ??????????#############????????# ! """"??? | | ???????????????????????????????# ??? | | ???????????????????????????????#########?? | | ?????????????????????????????????????????? | | ?????????????????????????????????????????? | | ?????????????????????????????????????????? | | ?????????????????????????????????????????? | | ?????????????????????????????????????????? | | ?????????????????????????????????????????? | | ?????????????????????????????????????????? | | ?????????????????????????????????????????? | | ?????????????????????????????????????????? | | ?????????????????????????????????????????? | | ?????????????????????????????????????????? | | ?????????????????????????????????????????? | | ?????????????????????????????????????????? | | ?????????????????????????????????????????? | | ?????????????????????????????????????????? | | ?????????????????????????????????????????? | | ?????????????????????????????????????????? | | ?????????????????????????????????????????? | | ?????????????????????????????????????????? | | ?????????????????????????????????????????? | | ?????????????????????????????????????????? | +----------------------------------------------------+ Best States ------------- Heat Dissipation 45 Energy Generation 10 Energy Capacity 250 Matter Stores 433 Matter Capacity 450 Sight Range 16 Terrain Scan Density 10 ECM Strength 1 Armor Coverage 675 Evasion (%) 55 Recoil Reduction 2 Item Schematics ----------------- None Robot Schematics ------------------ None Fabricated ------------ Nothing Alien Tech Used ----------------- None Achievements -------------- Shopping List Challenges ------------ None Game ------ Seed SpikedEnhancedStripper Manual? 0 Play Time 00:37:49 Cumulative 5.4 hours Start 2024.07.31 @ 19:15:04 End 2024.08.03 @ 18:03:12 Sessions 10 Manual Loads 0 Difficulty Rogue Special Mode None Game No. 6 Rogue 6 Adventurer 0 Explorer 0 Win Type - Total 0 Types 0/0/0/0/0/0/0/0/0 Lore% 4 Gallery% 10 Achievement% 11 Wizard Run 0 Options --------- Layout 1 ASCII 0 Keyboard 1 Movement Arrows Keybinds 0 Fullscreen 1 Font 24/Smallcaps Map View 50x35 Zoom Use 0% Tactical HUD 0 Map Filters NONE Filters NONE Steam 1 RUN: 9770f678-47b4-46d3-b57f-6c0b9b801db5